bitfinex/quotes_BTCUSD_20251016
["timestamp","ask_amount","ask_price","bid_price","bid_amount"]
[1760622909142,3.7854859,111190.0,111180.0,0.17988846]
[1760622909796,3.723738,111180.0,111170.0,0.17989024]
[1760622910035,3.723738,111170.0,111160.0,0.20690491]
[1760622910265,4.223738,111180.0,111170.0,0.17990465]
[1760622910509,3.76821768,111180.0,111170.0,0.17990465]
[1760622911194,0.02770657,111180.0,111170.0,0.17990465]
[1760622911432,4.24736781,111180.0,111170.0,0.17990465]
[1760622911639,3.75144385,111180.0,111170.0,0.17990465]
[1760622911865,3.94810208,111180.0,111170.0,0.17990465]
[1760622912336,4.68211547,111180.0,111170.0,0.17990465]
[1760622912565,3.76821362,111180.0,111170.0,0.17990465]
[1760622912781,3.94810208,111180.0,111170.0,0.17990465]
[1760622913260,4.68211547,111180.0,111170.0,0.17990465]
[1760622913496,0.17992083,111160.0,111150.0,0.17993702]
[1760622913720,4.63768613,111160.0,111150.0,0.17993702]
[1760622913951,4.65700615,111160.0,111150.0,0.17993702]
[1760622914234,0.03676977,111170.0,111160.0,0.17992083]
[1760622914462,3.94738684,111170.0,111160.0,0.17992083]
[1760622914678,3.94869581,111170.0,111160.0,0.17992083]
[1760622914907,3.94869581,111170.0,111150.0,0.17993702]
[1760622915128,0.9589712,111170.0,111150.0,0.17993702]
[1760622915349,3.723738,111160.0,111150.0,0.17993702]
[1760622918530,4.63923937,111160.0,111150.0,0.17993702]
[1760622918971,3.90365883,111160.0,111150.0,0.17993702]
[1760622919194,3.92297529,111160.0,111150.0,0.17993702]
[1760622920093,3.66978583,111160.0,111150.0,0.17993702]
[1760622920329,4.20587739,111160.0,111150.0,0.17993702]
[1760622920609,4.20587739,111160.0,111130.0,0.19896787]
[1760622920610,3.489865,111140.0,111130.0,0.19896787]
[1760622920822,3.66981821,111140.0,111130.0,0.1899694]
[1760622921042,3.489865,111140.0,111130.0,0.1899694]
[1760622921244,3.489865,111150.0,111140.0,0.17995321]
[1760622921984,3.489865,111150.0,111140.0,0.18045349]
[1760622922196,3.66980202,111150.0,111140.0,0.18045349]
[1760622922688,3.489865,111150.0,111140.0,0.21749578]
[1760622922930,3.489865,111150.0,111140.0,0.18045349]
[1760622923394,3.49143233,111150.0,111140.0,0.18045349]
[1760622923615,0.00156733,111150.0,111140.0,0.18045349]
[1760622925679,0.01957247,111150.0,111140.0,0.18045349]
[1760622926600,0.19950949,111150.0,111140.0,0.18045349]
[1760622926836,0.18150435,111150.0,111140.0,0.18045349]
[1760622927279,0.00156733,111150.0,111140.0,0.18045349]
[1760622927507,0.01077711,111150.0,111140.0,0.18045349]
[1760622927719,0.19071413,111150.0,111140.0,0.18045349]
[1760622927930,0.00156733,111150.0,111140.0,0.18045349]
[1760622928145,0.014105,111150.0,111140.0,0.18045349]
[1760622928902,0.01921999,111150.0,111140.0,0.18045349]
[1760622929147,0.19352527,111150.0,111140.0,0.18045349]
[1760622929399,0.01358825,111150.0,111140.0,0.18045349]
[1760622930040,0.19352527,111150.0,111140.0,0.18045349]
[1760622930251,0.00156733,111150.0,111140.0,0.18045349]
[1760622930476,0.01957247,111150.0,111140.0,0.18045349]
[1760622931479,0.00156733,111150.0,111140.0,0.18045349]
[1760622931749,0.01957247,111150.0,111140.0,0.18045349]
[1760622932203,0.00156733,111150.0,111140.0,0.18045349]
[1760622932423,0.01781,111150.0,111140.0,0.18045349]
[1760622932638,0.012662,111150.0,111140.0,0.18045349]
[1760622933443,0.00156733,111150.0,111140.0,0.18045349]
[1760622933894,0.00156733,111150.0,111140.0,0.21749578]
[1760622934127,4.03259464,111170.0,111160.0,0.17992083]
[1760622934380,0.046652,111170.0,111160.0,0.17992083]
[1760622934624,0.02732914,111170.0,111160.0,0.17992083]
[1760622934851,4.20865128,111170.0,111150.0,0.17992241]
[1760622935076,3.489865,111160.0,111150.0,0.17992241]
[1760622935303,3.50918786,111160.0,111150.0,0.17992241]
[1760622935520,0.00058749,111170.0,111160.0,0.17992083]
[1760622935736,0.04376828,111170.0,111160.0,0.17992083]
[1760622936193,0.01859263,111170.0,111160.0,0.17992083]
[1760622936415,0.00058749,111170.0,111160.0,0.17992083]
[1760622936651,0.01859263,111170.0,111160.0,0.17992083]
[1760622936889,0.93968057,111170.0,111140.0,0.20743919]
[1760622937133,4.40381541,111150.0,111140.0,0.18045349]
[1760622937367,0.17993324,111160.0,111150.0,0.17993702]
[1760622937597,3.68657994,111160.0,111150.0,0.17993702]
[1760622937827,3.6891284,111160.0,111150.0,0.17993702]
[1760622938714,3.71430612,111160.0,111150.0,0.17993702]
[1760622938905,3.50919516,111160.0,111150.0,0.17993702]
[1760622939157,3.68911599,111160.0,111150.0,0.17993702]
[1760622939379,3.53437833,111160.0,111150.0,0.17993702]
[1760622939660,3.50919516,111160.0,111150.0,0.17993702]
[1760622940984,0.01933016,111160.0,111150.0,0.17993702]
[1760622941217,0.02148491,111170.0,111160.0,0.17992083]
[1760622941442,0.22525734,111170.0,111160.0,0.17992083]
[1760622941677,3.6971172,111170.0,111160.0,0.17992083]
[1760622941893,0.17992083,111160.0,111140.0,0.18945115]
[1760622942138,0.17992083,111160.0,111150.0,0.17993702]
[1760622942581,0.20511394,111160.0,111150.0,0.17993702]
[1760622943013,0.27016444,111170.0,111160.0,0.17992083]
[1760622943272,0.0509186,111170.0,111160.0,0.17992083]
[1760622943492,3.73869339,111170.0,111160.0,0.17992083]
[1760622943711,3.489865,111160.0,111150.0,0.18993702]
[1760622943926,3.51759319,111160.0,111150.0,0.18993702]
[1760622944144,0.01933016,111160.0,111150.0,0.18993702]
[1760622944370,3.69449611,111170.0,111160.0,0.17992083]
[1760622944593,3.7164532,111170.0,111160.0,0.17992083]
[1760622945043,0.04668159,111170.0,111160.0,0.17992083]
[1760622945273,3.7140928,111170.0,111160.0,0.17992083]
[1760622945470,3.71645124,111170.0,111160.0,0.17992083]
[1760622945742,3.53654659,111170.0,111160.0,0.17992083]
[1760622945969,3.71645124,111170.0,111160.0,0.17992083]
[1760622946620,3.53654659,111170.0,111160.0,0.17992083]
[1760622947332,3.71645124,111170.0,111160.0,0.17992083]
[1760622947772,3.53654659,111170.0,111160.0,0.17992083]
[1760622947992,3.71645124,111170.0,111160.0,0.17992083]
[1760622948181,3.53654659,111170.0,111160.0,0.17992083]
[1760622948437,3.71645124,111170.0,111160.0,0.17992083]
[1760622948667,3.53654659,111170.0,111160.0,0.17992083]
[1760622948884,3.71645124,111170.0,111160.0,0.17992083]
[1760622949515,3.71644729,111170.0,111160.0,0.17992083]
[1760622949947,3.71644729,111170.0,111150.0,0.18993702]
[1760622950379,3.489865,111160.0,111150.0,0.18993702]
[1760622950599,3.50919516,111160.0,111150.0,0.18993702]
[1760622950825,0.01933016,111160.0,111150.0,0.18993702]
[1760622951073,3.66978583,111160.0,111150.0,0.18993702]
[1760622951292,3.71430679,111160.0,111150.0,0.18993702]
[1760622952180,3.53438596,111160.0,111150.0,0.18993702]
[1760622952396,3.35219843,111160.0,111150.0,0.18993702]
[1760622952629,0.04452096,111160.0,111150.0,0.18993702]
[1760622952849,3.52982158,111160.0,111150.0,0.01]
[1760622953067,3.50692899,111160.0,111150.0,0.18993702]
[1760622953517,3.50692899,111160.0,111150.0,0.01]
[1760622954189,4.26613956,111160.0,111150.0,0.01]
[1760622954412,3.53212617,111160.0,111150.0,0.01]
[1760622955378,3.32700816,111160.0,111150.0,0.18993702]
[1760622955602,3.50692899,111160.0,111150.0,0.18993702]
[1760622956264,3.32700816,111160.0,111150.0,0.18993702]
[1760622956731,3.3270319,111160.0,111150.0,0.18993702]
[1760622956966,3.48973854,111170.0,111150.0,0.18993702]
[1760622957194,0.19329571,111160.0,111150.0,0.18993702]
[1760622957417,0.17992083,111160.0,111150.0,0.18993702]
[1760622957635,3.307678,111160.0,111150.0,0.18993702]
[1760622958791,0.17992083,111160.0,111150.0,0.01]
[1760622959014,3.51279503,111160.0,111150.0,0.18993702]
[1760622959237,3.53214651,111160.0,111150.0,0.18993702]
[1760622959478,3.53214727,111160.0,111150.0,0.18993702]
[1760622959722,3.78267189,111170.0,111160.0,0.17992083]
[1760622959951,3.53272414,111170.0,111160.0,0.17992083]
[1760622960171,3.35281949,111170.0,111160.0,0.17992083]
[1760622960656,3.53272414,111170.0,111160.0,0.17992083]
[1760622960871,4.00713054,111170.0,111150.0,0.18993065]
[1760622961095,3.32568314,111160.0,111150.0,0.18993702]
[1760622961321,0.47499389,111170.0,111160.0,0.17992083]
[1760622961542,3.85282088,111170.0,111160.0,0.17992083]
[1760622961766,3.35282088,111170.0,111160.0,0.17992083]
[1760622962427,3.354388,111170.0,111160.0,0.17992083]
[1760622963100,0.02151018,111170.0,111160.0,0.17992083]
[1760622963336,0.02015975,111170.0,111160.0,0.17992083]
[1760622963556,0.00215461,111170.0,111160.0,0.17992083]
[1760622964240,0.02015975,111170.0,111160.0,0.17992083]
[1760622964487,0.00215461,111170.0,111160.0,0.17992083]
[1760622965160,0.02015975,111170.0,111160.0,0.17992083]
[1760622965379,0.00215461,111170.0,111160.0,0.17992083]
[1760622965637,0.43748524,111170.0,111160.0,0.17992083]
[1760622965846,0.02150573,111170.0,111160.0,0.17992083]
[1760622966066,0.43748524,111170.0,111160.0,0.17992083]
[1760622966273,0.02150573,111170.0,111160.0,0.17992083]
[1760622966507,3.95025748,111170.0,111150.0,0.18993203]
[1760622966736,0.22659997,111170.0,111150.0,0.18993539]
[1760622966976,3.51492685,111170.0,111160.0,0.17992083]
[1760622967216,3.95160346,111170.0,111160.0,0.17992083]
[1760622967693,3.53427797,111170.0,111160.0,0.17992083]
[1760622967900,3.95160346,111170.0,111160.0,0.17992083]
[1760622968126,0.04669532,111170.0,111160.0,0.17992083]
[1760622968345,0.43748524,111170.0,111160.0,0.17992083]
[1760622968582,0.43883122,111170.0,111160.0,0.17992083]
[1760622969305,0.00058749,111170.0,111160.0,0.59724632]
[1760622969978,0.00058749,111170.0,111160.0,0.17992083]
[1760622970230,0.00058749,111170.0,111160.0,0.258639]
[1760622970453,0.00058749,111170.0,111160.0,0.59724632]
[1760622970936,0.00058749,111170.0,111160.0,1.10426193]
[1760622972066,0.00058749,111170.0,111160.0,0.26961095]
[1760622972286,0.00058749,111170.0,111160.0,1.10426193]
[1760622973586,0.00058749,111170.0,111160.0,1.10526193]
[1760622973803,0.00058749,111170.0,111160.0,1.19494401]
[1760622974692,1e-08,111170.0,111160.0,1.19494401]
[1760622976050,1e-08,111170.0,111160.0,1.6122695]
[1760622976733,1e-08,111170.0,111160.0,1.23112629]
[1760622978280,1e-08,111170.0,111160.0,1.24112629]
[1760622979425,1e-08,111170.0,111160.0,1.99845178]
[1760622979877,1e-08,111170.0,111160.0,2.41577727]
[1760622980100,1e-08,111170.0,111160.0,2.40663859]
[1760622980295,1e-08,111170.0,111160.0,2.44282087]
[1760622980553,1e-08,111170.0,111160.0,3.27647185]
[1760622980768,1e-08,111170.0,111160.0,3.27847185]
[1760622981655,1e-08,111170.0,111160.0,8.27847185]
[1760622983238,1e-08,111210.0,111180.0,0.00899442]
[1760622983454,1e-08,111210.0,111200.0,1.59271087]
[1760622983671,1e-08,111210.0,111200.0,1.68239295]
[1760622984112,1e-08,111210.0,111200.0,1.70678185]
[1760622984591,0.00015006,111210.0,111200.0,1.23329067]
[1760622984801,0.00015006,111210.0,111200.0,0.96046177]
[1760622985022,0.00015006,111210.0,111200.0,0.96146177]
[1760622986371,0.00015006,111210.0,111200.0,0.96046177]
[1760622986614,0.00015006,111210.0,111200.0,1.30046177]
[1760622986834,0.00015006,111210.0,111200.0,0.82797059]
[1760622987056,0.00015006,111210.0,111200.0,1.30146177]
[1760622987280,1e-08,111210.0,111200.0,1.77495295]
[1760622989784,1e-08,111210.0,111200.0,1.31664271]
[1760622990275,0.00234901,111210.0,111200.0,1.31664271]
[1760622990525,1e-08,111210.0,111200.0,1.79013389]
[1760622991466,1e-08,111210.0,111200.0,0.75163153]
[1760622991699,1e-08,111210.0,111200.0,1.17371949]
[1760622991945,1e-08,111210.0,111200.0,1.26523949]
[1760622992165,1e-08,111210.0,111200.0,0.36022831]
[1760622992397,1e-08,111210.0,111200.0,0.18085611]
[1760622993610,1e-08,111210.0,111200.0,0.17985611]
[1760622995771,1e-08,111210.0,111200.0,0.74303741]
[1760622996419,1e-08,111210.0,111200.0,0.26954623]
[1760622997104,1e-08,111210.0,111200.0,0.27054623]
[1760622997319,3.307678,111230.0,111220.0,0.17980797]
[1760622998501,3.307678,111240.0,111230.0,0.1798076]
[1760622999004,3.307678,111230.0,111210.0,0.17983669]
[1760622999264,0.00738964,111220.0,111210.0,0.17983669]
[1760623001771,0.18721341,111220.0,111210.0,0.17983994]
[1760623002011,0.65331495,111220.0,111200.0,0.18884891]
[1760623002259,0.17982377,111220.0,111210.0,0.17983994]
[1760623002506,0.18721341,111220.0,111210.0,0.17983994]
[1760623003246,0.17982377,111220.0,111210.0,0.17983994]
[1760623003737,0.17982377,111220.0,111200.0,0.18884891]
[1760623003988,3.31506764,111210.0,111200.0,0.18884891]
[1760623004238,0.66230613,111220.0,111200.0,0.17828981]
[1760623004491,3.31506764,111210.0,111200.0,0.17828981]
[1760623004743,0.17982377,111220.0,111210.0,0.17982543]
[1760623004982,3.48750177,111220.0,111210.0,0.17982543]
[1760623005231,3.307678,111220.0,111210.0,0.17982543]
[1760623005477,3.48750177,111220.0,111210.0,0.17983994]
[1760623005727,3.5042326,111220.0,111210.0,0.17983994]
[1760623006471,3.307678,111200.0,111190.0,0.1888659]
[1760623006704,3.307678,111200.0,111190.0,0.18901595]
[1760623007406,3.78116918,111200.0,111190.0,0.00015005]
[1760623007652,3.78116918,111200.0,111190.0,0.18002234]
[1760623007892,3.307678,111200.0,111190.0,0.18002234]
[1760623008616,3.48753411,111200.0,111190.0,0.18002234]
[1760623009312,3.96102529,111200.0,111190.0,0.18002234]
[1760623009554,3.98032403,111200.0,111190.0,0.18002234]
[1760623009767,3.80046792,111200.0,111190.0,0.18002234]
[1760623009988,3.307678,111200.0,111190.0,0.18002234]
[1760623012961,3.98033611,111200.0,111190.0,0.18002234]
[1760623013426,4.03740639,111200.0,111190.0,0.18002234]
[1760623013656,4.03740639,111200.0,111190.0,0.00015005]
[1760623013887,4.56324761,111200.0,111190.0,0.00015005]
[1760623014113,3.78116918,111170.0,111160.0,0.20790764]
[1760623014336,4.02126679,111170.0,111160.0,0.20790764]
[1760623014558,3.98038465,111170.0,111160.0,0.20790764]
[1760623014779,3.98038465,111170.0,111160.0,0.18992083]
[1760623015000,4.03565293,111170.0,111160.0,0.18992083]
[1760623016161,4.03565293,111170.0,111160.0,0.01]
[1760623016408,4.07183521,111170.0,111160.0,0.01]
[1760623016644,4.10604578,111170.0,111160.0,0.01]
[1760623017097,4.10401042,111170.0,111160.0,0.01]
[1760623017582,3.96112239,111140.0,111130.0,0.00507918]
[1760623017864,4.01661549,111140.0,111130.0,0.00557946]
[1760623018116,0.1800018,111110.0,111100.0,0.01798804]
[1760623018326,3.78116918,111110.0,111100.0,0.19805599]
[1760623018550,0.65349298,111110.0,111100.0,4.995e-05]
[1760623018793,0.65349298,111110.0,111100.0,0.18006795]
[1760623019005,3.96117098,111110.0,111100.0,0.18006795]
[1760623019226,4.30117098,111110.0,111100.0,0.18006795]
[1760623019468,4.59872251,111110.0,111100.0,4.995e-05]
[1760623020143,4.61283887,111110.0,111100.0,4.995e-05]
[1760623021312,3.94545878,111110.0,111100.0,4.995e-05]
[1760623021543,3.94545878,111110.0,111080.0,0.18904952]
[1760623021544,0.18005385,111080.0,111060.0,0.19797976]
[1760623021787,0.18005385,111080.0,111060.0,0.01813754]
[1760623021788,0.92231669,111070.0,111060.0,0.01813754]
[1760623022019,3.48774462,111070.0,111060.0,0.18023233]
[1760623022256,4.22260505,111070.0,111060.0,0.0001495]
[1760623022494,4.25878733,111070.0,111060.0,0.0001495]
[1760623022751,4.26082269,111070.0,111060.0,0.0001495]
[1760623023189,4.28911215,111070.0,111060.0,0.0001495]
[1760623023475,4.29168085,111070.0,111060.0,0.0001495]
[1760623023701,4.27565187,111070.0,111060.0,0.18023233]
[1760623023923,4.28977372,111070.0,111060.0,0.0001495]
[1760623024411,4.28977372,111070.0,111060.0,0.00426666]
[1760623024644,4.35665008,111070.0,111060.0,0.00426666]
[1760623025134,4.35665008,111070.0,111040.0,0.0004]
[1760623025135,4.59881976,111050.0,111040.0,0.0004]
[1760623025365,4.59896944,111050.0,111040.0,0.0004]
[1760623025839,3.89443383,111050.0,111040.0,0.0004]
[1760623026079,4.60053826,111050.0,111040.0,0.0004]
[1760623026552,4.61959184,111050.0,111040.0,0.0004]
[1760623027006,3.91505623,111050.0,111040.0,0.0004]
[1760623027279,4.60053826,111050.0,111040.0,0.0004]
[1760623027511,4.60053826,111050.0,111030.0,0.18052991]
[1760623027512,3.52397555,111040.0,111030.0,0.0004]
[1760623027757,3.52397555,111040.0,111020.0,0.0004]
[1760623027758,0.55631377,111030.0,111020.0,0.0004]
[1760623028054,4.5988522,111030.0,111020.0,0.0004]
[1760623028300,4.5988522,111030.0,111010.0,0.0004]
[1760623028301,3.82782572,111020.0,111010.0,0.0004]
[1760623028548,4.56268615,111020.0,111010.0,0.0004]
[1760623029239,0.35412723,111020.0,111010.0,0.18056394]
[1760623029474,4.38253843,111020.0,111010.0,0.18056394]
[1760623029710,4.56268615,111020.0,111010.0,0.0004]
[1760623030441,0.18016394,111010.0,111000.0,6.60109967]
[1760623030692,4.25888465,111010.0,111000.0,6.60109967]
[1760623030925,4.25888465,111010.0,111000.0,6.54695515]
[1760623031282,4.33783022,111010.0,111000.0,6.10972915]
[1760623031379,4.31889408,111010.0,111000.0,6.08265689]
[1760623031619,4.35436264,111010.0,111000.0,6.05558463]
[1760623031875,4.33802579,111010.0,111000.0,5.96260308]
[1760623032116,4.67802579,111010.0,111000.0,5.93553082]
[1760623032362,4.67417606,111010.0,111000.0,5.86245015]
[1760623032596,4.64332889,111010.0,111000.0,5.83537789]
[1760623032830,4.64332889,111010.0,111000.0,5.80830563]
[1760623032831,4.61516663,111010.0,111000.0,5.80830563]
[1760623033062,4.61516663,111010.0,111000.0,5.78123337]
[1760623033299,4.61516663,111010.0,111000.0,5.72708885]
[1760623033300,3.8803062,111010.0,111000.0,5.72708885]
[1760623033544,3.50412392,111010.0,111000.0,5.69206199]
[1760623033790,4.6750135,111010.0,111000.0,4.91072394]
[1760623034028,4.39371705,111010.0,111000.0,4.80265065]
[1760623034262,4.74495278,111010.0,111000.0,4.59669322]
[1760623034498,4.69841522,111010.0,111000.0,4.51173044]
[1760623034734,4.69841522,111010.0,111000.0,4.45758592]
[1760623034991,4.69841522,111010.0,111000.0,4.43051366]
[1760623034992,4.70177454,111010.0,111000.0,4.43051366]
[1760623035235,4.72888613,111010.0,111000.0,4.4034414]
[1760623035463,3.96355261,111010.0,111000.0,4.37636914]
[1760623035708,4.69841304,111010.0,111000.0,4.34929688]
[1760623035933,4.69841304,111010.0,111000.0,4.29513865]
[1760623035934,4.23898435,111010.0,111000.0,4.29513865]
[1760623036173,4.23898435,111010.0,111000.0,4.27158471]
[1760623036406,4.23898435,111010.0,111000.0,4.24449874]
[1760623036636,4.33118779,111010.0,111000.0,4.21741277]
[1760623036873,4.33118779,111010.0,111000.0,4.1903268]
[1760623037106,4.33118779,111010.0,111000.0,4.09115486]
[1760623037344,4.33118779,111010.0,111000.0,4.06406889]
[1760623037608,4.31505541,111010.0,111000.0,3.62409015]
[1760623038540,4.31705541,111010.0,111000.0,3.62409015]
[1760623038771,4.3455285,111010.0,111000.0,3.62409015]
[1760623039014,4.3465285,111010.0,111000.0,3.62409015]
[1760623039248,4.65605541,111010.0,111000.0,3.61629091]
[1760623039487,4.6865285,111010.0,111000.0,3.61629091]
[1760623039714,4.6875285,111010.0,111000.0,3.19816438]
[1760623040175,4.6875285,111010.0,111000.0,3.17107841]
[1760623040410,4.6855285,111010.0,111000.0,3.14399244]
[1760623040644,4.7016612,111010.0,111000.0,3.14399244]
[1760623040874,4.6996612,111010.0,111000.0,3.14399244]
[1760623041340,4.7016612,111010.0,111000.0,3.14399244]
[1760623041575,4.71804784,111010.0,111000.0,3.14399244]
[1760623042035,4.71961771,111010.0,111000.0,2.73468231]
[1760623042267,4.71961771,111010.0,111000.0,2.33433372]
[1760623042504,4.71961771,111010.0,111000.0,1.15027552]
[1760623042505,6.67336841,111010.0,111000.0,1.15027552]
[1760623042760,3.38967934,111010.0,111000.0,0.16545707]
[1760623042993,2.95703862,110940.0,110930.0,0.05527245]
[1760623043238,3.72808133,110940.0,110930.0,0.05527245]
[1760623043503,3.72808133,110940.0,110930.0,0.03728441]
[1760623043737,3.5635133,110940.0,110930.0,0.03728441]
[1760623043969,3.52733102,110940.0,110930.0,0.21757828]
[1760623044203,3.52748048,110940.0,110930.0,0.21757828]
[1760623044424,0.80303444,110940.0,110930.0,0.21757828]
[1760623044660,0.06817401,110940.0,110930.0,0.21757828]
[1760623044896,0.06660346,110940.0,110930.0,0.21757828]
[1760623045141,1e-08,110940.0,110930.0,1.17039111]
[1760623045414,1e-08,110940.0,110930.0,0.3072684]
[1760623045647,1e-08,110940.0,110930.0,0.21757828]
[1760623046117,1e-08,110940.0,110930.0,1.04212883]
[1760623046348,1e-08,110940.0,110930.0,1.13424883]
[1760623046579,1e-08,110940.0,110930.0,1.17043111]
[1760623046811,1e-08,110940.0,110930.0,1.17047111]
[1760623047039,1e-08,110940.0,110930.0,1.51047111]
[1760623047749,1e-08,110940.0,110930.0,1.41831111]
[1760623047989,1e-08,110940.0,110930.0,1.51047111]
[1760623048704,1e-08,110940.0,110930.0,1.51459551]
[1760623049628,1e-08,110940.0,110930.0,1.42243551]
[1760623050108,1e-08,110940.0,110930.0,1.51463551]
[1760623051574,1e-08,110980.0,110970.0,0.91508932]
[1760623051804,0.01798804,111000.0,110990.0,0.18019641]
[1760623052056,0.55116914,111030.0,111020.0,0.18014772]
[1760623052057,0.53211899,111030.0,111020.0,0.18014772]
[1760623052312,0.01798804,111030.0,111020.0,0.18014772]
[1760623052594,0.01955714,111050.0,111040.0,0.18011527]
[1760623052846,0.03456852,111050.0,111040.0,0.18011527]
[1760623053082,0.04270571,111070.0,111060.0,0.18008283]
[1760623053318,0.03713735,111080.0,111070.0,0.18006662]
[1760623053319,0.00508605,111080.0,111070.0,0.18006662]
[1760623053828,0.00523626,111080.0,111070.0,0.18006662]
[1760623054281,0.34523626,111080.0,111070.0,0.18006662]
[1760623054518,0.00623626,111080.0,111070.0,0.18006662]
[1760623056382,0.00523626,111080.0,111050.0,0.18908994]
[1760623056613,3.050307,111060.0,111050.0,0.18009905]
[1760623056834,0.34,111060.0,111050.0,0.18009905]
[1760623057321,2.710307,111060.0,111040.0,0.18010778]
[1760623057563,2.710307,111050.0,111040.0,0.18011198]
[1760623058036,2.710307,111060.0,111030.0,0.18912383]
[1760623058284,2.72941131,111060.0,111040.0,0.18011149]
[1760623058507,2.710307,111050.0,111040.0,0.18011149]
[1760623058965,2.89037665,111070.0,111050.0,0.18009307]
[1760623059187,2.710307,111060.0,111050.0,0.18009307]
[1760623059418,2.710307,111060.0,111040.0,0.18911725]
[1760623059720,2.710307,111050.0,111030.0,0.18912383]
[1760623059992,2.710307,111040.0,111030.0,0.18912383]
[1760623060263,2.89040618,111050.0,111030.0,0.18912383]
[1760623060514,2.710307,111060.0,111040.0,0.18011527]
[1760623060740,3.050307,111060.0,111050.0,0.18008752]
[1760623060962,2.710307,111050.0,111040.0,0.18912103]
[1760623061190,0.00015015,111050.0,111040.0,0.18912103]
[1760623061426,0.21327804,111070.0,111050.0,0.18009905]
[1760623061670,2.710307,111060.0,111050.0,0.91495948]
[1760623061924,0.00156865,111070.0,111040.0,0.18912103]
[1760623062200,2.710307,111060.0,111050.0,0.18009522]
[1760623062651,2.89039052,111060.0,111030.0,0.18912383]
[1760623062880,2.710307,111050.0,111040.0,0.18010722]
[1760623063102,2.710307,111060.0,111040.0,0.18010722]
[1760623063584,2.710307,111050.0,111040.0,0.18010722]
[1760623063824,2.710307,111040.0,111030.0,0.18028011]
[1760623064088,0.34,111050.0,111040.0,0.18011527]
[1760623065237,0.52064739,111070.0,111060.0,0.18008283]
[1760623065467,2.73095439,111070.0,111060.0,0.18008283]
[1760623065710,2.71187565,111070.0,111060.0,0.18008283]
[1760623065959,0.00156865,111070.0,111060.0,0.18008283]
[1760623066191,2.710307,111090.0,111080.0,0.18003499]
[1760623066414,2.73095742,111090.0,111080.0,0.18003499]
[1760623067397,2.71202539,111090.0,111080.0,0.18003499]
[1760623067870,0.00015004,111090.0,111080.0,0.18003499]
[1760623068099,0.00015004,111090.0,111080.0,1.04076782]
[1760623068797,0.00015004,111090.0,111080.0,0.18003499]
[1760623069477,0.00015004,111090.0,111080.0,0.18103499]
[1760623069968,0.00015004,111090.0,111080.0,0.18003499]
[1760623070188,0.00015004,111090.0,111080.0,0.18103499]
[1760623072267,2.489825,111110.0,111100.0,0.180018]
[1760623072994,2.489825,111120.0,111100.0,0.180018]
[1760623073223,2.489825,111120.0,111110.0,0.19800198]
[1760623073456,2.489825,111120.0,111110.0,0.1800018]
[1760623074854,2.489825,111130.0,111110.0,0.1800018]
[1760623075092,2.48997501,111130.0,111120.0,0.1799856]
[1760623075311,2.50909818,111130.0,111120.0,0.1799856]
[1760623075772,2.50909818,111130.0,111100.0,0.1890189]
[1760623075773,2.489825,111120.0,111100.0,0.1890189]
[1760623076005,2.489825,111110.0,111100.0,0.18001335]
[1760623076729,2.4913929,111110.0,111100.0,0.18001335]
[1760623076963,0.0015679,111110.0,111100.0,0.91487378]
[1760623077199,0.00015001,111130.0,111120.0,0.1799856]
[1760623077425,0.00171777,111130.0,111120.0,0.91484603]
[1760623077704,0.00015001,111130.0,111120.0,0.1799856]
[1760623079060,0.00015001,111130.0,111120.0,1.00453615]
[1760623079285,0.00015001,111130.0,111120.0,1.00553615]
[1760623079518,0.00015001,111130.0,111120.0,1.04171843]
[1760623079976,0.00015001,111130.0,111120.0,1.04071843]
[1760623080438,0.00015001,111130.0,111120.0,0.306858]
[1760623081130,1e-08,111130.0,111120.0,1.04171843]
[1760623081624,1e-08,111130.0,111120.0,0.78112621]
[1760623081848,1e-08,111130.0,111120.0,0.281858]
[1760623082089,1e-08,111130.0,111120.0,0.75612621]
[1760623082316,1e-08,111130.0,111120.0,0.84832621]
[1760623083245,1e-08,111130.0,111120.0,1.66259442]
[1760623083478,1e-08,111130.0,111120.0,0.621858]
[1760623083703,1e-08,111130.0,111120.0,0.281858]
[1760623084383,1e-08,111130.0,111120.0,0.1559856]
[1760623085587,1e-08,111130.0,111120.0,0.64825237]
[1760623085819,1e-08,111130.0,111120.0,0.62925381]
[1760623086057,1e-08,111130.0,111120.0,0.001]
[1760623086293,3.14406365,111130.0,111110.0,0.18498651]
[1760623086512,3.14406365,111130.0,111110.0,0.005]
[1760623086513,3.14407881,111120.0,111110.0,0.005]
[1760623086733,3.16322648,111120.0,111110.0,0.005]
[1760623087416,3.16322648,111120.0,111110.0,0.1850018]
[1760623087417,2.98324088,111120.0,111110.0,0.1850018]
[1760623088103,3.16322648,111120.0,111110.0,0.005]
[1760623088325,2.50897267,111120.0,111110.0,0.1850018]
[1760623088791,2.98324088,111120.0,111110.0,0.005]
[1760623089015,3.16322648,111120.0,111110.0,0.005]
[1760623089300,3.18683172,111120.0,111110.0,0.005]
[1760623089527,3.00684612,111120.0,111110.0,0.1850018]
[1760623089764,2.53257791,111120.0,111110.0,0.1850018]
[1760623091086,3.18683172,111120.0,111110.0,0.005]
[1760623091529,3.20347567,111120.0,111110.0,0.1850018]
[1760623091760,3.20347567,111120.0,111110.0,0.005]
[1760623091761,2.72920746,111120.0,111110.0,0.005]
[1760623091983,3.23552697,111120.0,111110.0,0.005]
[1760623092209,3.23709481,111120.0,111110.0,0.005]
[1760623092668,3.21348957,111120.0,111110.0,0.005]
[1760623092897,3.7360206,111120.0,111110.0,0.005]
[1760623093156,3.71229608,111120.0,111110.0,0.005]
[1760623093388,3.18976505,111120.0,111110.0,0.005]
[1760623094084,3.18819721,111120.0,111110.0,0.005]
[1760623094308,3.2524563,111120.0,111110.0,0.005]
[1760623095205,3.72672451,111120.0,111110.0,0.005]
[1760623095428,3.14411121,111100.0,111090.0,0.18903591]
[1760623095680,2.6698592,111090.0,111080.0,0.01798804]
[1760623095900,3.14412741,111090.0,111080.0,0.01798804]
[1760623096144,2.489825,111080.0,111060.0,0.19807087]
[1760623096380,2.98811633,111070.0,111060.0,0.19807087]
[1760623096621,3.18733062,111070.0,111050.0,0.005]
[1760623096888,2.489825,111060.0,111050.0,0.18524905]
[1760623097118,2.50897267,111060.0,111050.0,0.18524905]
[1760623097349,0.01914767,111060.0,111050.0,0.18524905]
[1760623097607,3.0346331,111080.0,111070.0,0.18006662]
[1760623097843,2.55131345,111080.0,111070.0,0.18006662]
[1760623098519,2.55931997,111080.0,111070.0,0.18006662]
[1760623098714,2.55775147,111080.0,111070.0,0.18006662]
[1760623099426,2.489825,111070.0,111060.0,0.18008283]
[1760623099654,2.58173616,111070.0,111060.0,0.18008283]
[1760623099880,3.05600437,111070.0,111060.0,0.18008283]
[1760623100102,2.58173616,111070.0,111060.0,0.18008283]
[1760623101047,2.489825,111060.0,111050.0,0.194254]
[1760623101287,2.50904148,111060.0,111050.0,0.194254]
[1760623103606,0.01921648,111060.0,111050.0,0.194254]